[Event "CZE-ch Open 2018"]
[Site "Ostrava"]
[Date "2018.05.04"]
[Round "7"]
[White "Svoboda, Svatopluk"]
[Black "Zwardon, Vojtech"]
[Result "1-0"]
[ECO "B36"]
[WhiteElo "2401"]
[BlackElo "2409"]
[Annotator "ChessBase"]
[PlyCount "91"]
[EventDate "2018.??.??"]
[EventCountry "CZE"]
[SourceTitle "playchess.com"]
[Source "ChessBase"]
[SourceQuality "1"]
[TimeControl "40/5400+30:900+30"]

1. e4 {[%emt 0:00:56]} c5 {[%emt 0:00:01]} 2. Nf3 {[%emt 0:00:20]} Nc6 {[%emt 0:00:01]} 3. d4 {[%emt 0:00:06]} cxd4 {[%emt 0:00:03]} 4. Nxd4 {[%emt 0:00:05]} g6 {[%emt 0:00:02]} 5. c4 {[%emt 0:00:04]} Nf6 {[%emt 0:00:05]} 6. Nc3 {[%emt 0:00:08]} Nxd4 {[%emt 0:00:06]} 7. Qxd4 {[%emt 0:00:06]} d6 {[%emt 0:00:02]} 8. f3 {[%emt 0:00:54]} Bg7 {[%emt 0:00:06]} 9. Be3 {[%emt 0:00:19]} Be6 {[%emt 0:02:06]} 10. Rc1 {[%emt 0:00:59]} Qa5 {[%emt 0:03:23]} 11. Be2 {[%emt 0:01:50]} O-O {[%emt 0:01:37]} 12. Qd2 {[%emt 0:00:10]} Rfc8 {[%emt 0:00:23]} 13. b3 {[%emt 0:00:08]} a6 {[%emt 0:00:07]} 14. Na4 {[%emt 0:00:08]} Qxd2+ {[%emt 0:00:09]} 15. Kxd2 {[%emt 0:00:10]} Nd7 {[%emt 0:00:05]} 16. g4 {[%emt 0:00:07]} f5 {[%emt 0:00:23]} 17. gxf5 {[%emt 0:00:12]} gxf5 {[%emt 0:00:03]} 18. Rhg1 {[%emt 0:00:05]} Kh8 {[%emt 0:01:02]} 19. Bd3 {[%emt 0:00:06]} Rf8 {[%emt 0:05:12]} 20. Rxg7 {[%emt 0:00:07]} Kxg7 {[%emt 0:00:23]} 21. Rg1+ {[%emt 0:00:02]} Kf6 {[%emt 0:36:19]} 22. Bd4+ {[%emt 0:02:16]} Ne5 {[%emt 0:01:06]} 23. f4 {[%emt 0:00:21]} Rg8 {[%emt 0:08:05]} 24. Rg3 {[%emt 0:01:47]} Rad8 {[%emt 0:04:33]} 25. Ke2 {[%emt 0:02:38]} fxe4 {[%emt 0:06:50]} 26. Bxe4 {[%emt 0:00:25]} Rxg3 {[%emt 0:00:31]} 27. hxg3 {[%emt 0:00:18]} b5 {[%emt 0:00:07]} 28. Nb6 {[%emt 0:05:50]} bxc4 {[%emt 0:02:58]} 29. bxc4 {[%emt 0:00:59]} Bf5 {[%emt 0:05:39]} 30. Bb7 {[%emt 0:03:35]} Bd3+ {[%emt 0:02:57]} 31. Kf2 {[%emt 0:03:32]} Ke6 {[%emt 0:03:17]} 32. fxe5 {[%emt 0:00:58]} dxe5 {[%emt 0:00:14]} 33. Be3 {[%emt 0:00:14]} Rf8+ {[%emt 0:00:53]} 34. Ke1 {[%emt 0:00:16]} Rf1+ {[%emt 0:06:20]} 35. Kd2 {[%emt 0:00:05]} e4 {[%emt 0:00:01]} 36. c5 {[%emt 0:00:22]} Rb1 {[%emt 0:03:16]} 37. Bd4 {[%emt 0:02:04]} Rh1 {[%emt 0:00:40]} 38. g4 {[%emt 0:02:12]} Rh2+ {[%emt 0:00:29]} 39. Ke3 {[%emt 0:02:14]} Re2+ {[%emt 0:01:36]} 40. Kf4 {[%emt 0:01:00]} Kf7 {[%emt 0:15:11]} 41. c6 {[%emt 0:17:35]} Rc2 {[%emt 0:00:47]} 42. Be5 {[%emt 0:01:35]} Rf2+ {[%emt 0:00:45]} 43. Ke3 {[%emt 0:00:33]} Rf3+ {[%emt 0:04:49]} 44. Kd4 {[%emt 0:01:06]} Be2 {[%emt 0:00:07]} 45. c7 {[%emt 0:00:47]} Rd3+ {[%emt 0:00:02]} 46. Kxe4 {[%emt 0:00:19]} 1-0

[Event "CZE-ch Open 2018"]
[Site "Ostrava"]
[Date "2018.05.04"]
[Round "7"]
[White "Hausner, Ivan"]
[Black "Miesbauer, Jan"]
[Result "1/2-1/2"]
[ECO "A40"]
[WhiteElo "2334"]
[BlackElo "2261"]
[Annotator "NA"]
[PlyCount "105"]
[EventDate "2018.??.??"]
[EventCountry "CZE"]
[SourceTitle "playchess.com"]
[Source "ChessBase"]
[SourceQuality "1"]
[TimeControl "40/5400+30:900+30"]

1. d4 {[%emt 0:00:00]} e6 {[%emt 0:00:22]} 2. g3 {[%emt 0:00:43]} c5 {[%emt 0:00:47]} 3. Nf3 {[%emt 0:00:05]} b6 {[%emt 0:00:57]} 4. e4 {[%emt 0:00:24] A43: Schmid Benoni} (4. Bg2 Bb7 5. O-O Nf6 6. c4 cxd4 7. Qxd4 Be7 8. Nc3 d6 9. Bg5 O-O 10. Rfd1 h6 11. Bxf6 Bxf6 12. Qf4 Qe7 13. Qxd6 Qxd6 14. Rxd6 Na6 15. Rc1 Rfd8 16. Rcd1 Rxd6 17. Rxd6 {½-½ (61) Gustafsson,J (2634)-Shabalov,A (2577) New York 2011}) 4... cxd4 {[%emt 0:01:29]} 5. Nxd4 {[%emt 0:00:06]} Bb7 {[%emt 0:00:17]} 6. Bg2 {[%emt 0:00:11]} Nf6 {[%emt 0:01:42]} 7. Nc3 {[%emt 0:00:30]} Bb4 {[%emt 0:03:29]} 8. Bg5 {[%emt 0:00:07]} h6 {[%emt 0:02:06]} 9. Bxf6 $146 {[%emt 0:00:09]} ({Predecessor:} 9. Bf4 Bxe4 10. Bxe4 Nxe4 11. Qd3 Nxc3 12. bxc3 Bc5 13. O-O Nc6 14. Bd6 Bxd6 {0-1 (14) Hulse,D (1173)-Garcia,A (1046) IECC email 2004}) 9... Qxf6 {[%emt 0:04:00]} 10. O-O {[%emt 0:01:49]} Nc6 {[%emt 0:07:57]} 11. Ndb5 {[%emt 0:00:44]} Qe5 {[%emt 0:12:34]} 12. f4 {[%emt 0:02:47]} Qc5+ {[%emt 0:01:24]} 13. Kh1 {[%emt 0:00:15]} O-O {[%emt 0:08:13]} 14. a3 {[%emt 0:00:11]} Bxc3 {[%emt 0:00:12]} 15. Nxc3 {[%emt 0:00:05]} d6 {[%emt 0:01:20]} 16. Qd3 {[%emt 0:08:19]} Rfd8 {[%emt 0:04:46]} 17. b4 {[%emt 0:01:59]} Qd4 {[%emt 0:02:27]} 18. Rfd1 {[%emt 0:06:32]} Qxd3 {[%emt 0:02:11]} 19. Rxd3 {[%emt 0:00:06]} e5 {[%emt 0:00:26]} 20. Nd5 {[%emt 0:00:13]} Kf8 {[%emt 0:04:50]} 21. Rad1 {[%emt 0:00:53]} Rac8 {[%emt 0:02:10]} 22. Bh3 {[%emt 0:04:38]} Rb8 {[%emt 0:00:12]} 23. Bg2 {[%emt 0:00:18]} Ba6 {[%emt 0:13:41]} 24. R3d2 {[%emt 0:01:39]} Bb7 {[%emt 0:03:10]} 25. Ne3 {[%emt 0:08:46]} Nd4 {[%emt 0:01:34]} 26. c3 {[%emt 0:01:29]} Nb5 {[%emt 0:01:36]} 27. Rd3 {[%emt 0:01:01]} Rbc8 {[%emt 0:00:36]} 28. Rc1 {[%emt 0:04:39]} g6 {[%emt 0:04:11]} 29. a4 {[%emt 0:03:58]} Nd4 {[%emt 0:00:32]} 30. Re1 {[%emt 0:02:28]} Ne6 {[%emt 0:01:06]} 31. Nd5 {[%emt 0:04:08]} exf4 {[%emt 0:02:27]} 32. Nxf4 {[%emt 0:00:07]} Nxf4 {[%emt 0:02:12]} 33. gxf4 {[%emt 0:00:04]} a5 {[%emt 0:00:14]} 34. Kg1 {[%emt 0:01:34]} axb4 {[%emt 0:01:52]} 35. cxb4 {[%emt 0:00:10]} Rc4 {[%emt 0:00:18]} 36. e5 {[%emt 0:01:28]} Bxg2 {[%emt 0:00:26]} 37. Kxg2 {[%emt 0:00:05]} d5 {[%emt 0:03:19]} 38. e6 {[%emt 0:00:22]} Re8 {[%emt 0:00:21]} 39. Rxd5 {[%emt 0:00:16]} Rxe6 {[%emt 0:01:48]} 40. Rxe6 {[%emt 0:00:19]} fxe6 {[%emt 0:15:02]} 41. Rb5 {[%emt 0:15:34]} Rc6 {[%emt 0:00:40]} (41... Rc2+ $11 {remains equal.} 42. Kf3 Rc6) 42. Kf3 {[%emt 0:00:40]} Ke7 {[%emt 0:00:06]} 43. h4 {[%emt 0:00:43]} Kd6 {[%emt 0:01:50]} 44. a5 {[%emt 0:01:51]} bxa5 {[%emt 0:00:05]} 45. bxa5 {[%emt 0:00:05]} Rc3+ {[%emt 0:00:29]} 46. Kg4 {[%emt 0:00:27]} Ra3 {[%emt 0:00:55]} 47. h5 {[%emt 0:00:56]} Ke7 {[%emt 0:00:51]} 48. hxg6 {[%emt 0:01:03]} Kf6 {[%emt 0:00:16]} 49. Re5 {[%emt 0:00:07]} Ra1 $14 {[%emt 0:01:39]} 50. Kf3 {[%emt 0:03:59]} Ra4 {[%emt 0:00:07]} 51. Ke3 {[%emt 0:00:30]} Ra3+ {[%emt 0:01:27]} 52. Kd2 {[%emt 0:00:11]} Ra4 {[%emt 0:02:20]} 53. Rd5 {Ke5} 1/2-1/2

[Event "CZE-ch Open 2018"]
[Site "Ostrava"]
[Date "2018.05.04"]
[Round "7"]
[White "Michenka, Jozef"]
[Black "Simek, Petr"]
[Result "1/2-1/2"]
[ECO "B06"]
[WhiteElo "2328"]
[BlackElo "2378"]
[Annotator "NA"]
[PlyCount "29"]
[EventDate "2018.??.??"]
[EventCountry "CZE"]
[SourceTitle "playchess.com"]
[Source "ChessBase"]
[SourceQuality "1"]
[TimeControl "40/5400+30:900+30"]

1. d4 {[%emt 0:00:00]} g6 {[%emt 0:00:13]} 2. e4 {[%emt 0:00:00]} Bg7 {[%emt 0:00:05]} 3. c4 {[%emt 0:00:01]} c5 {[%emt 0:00:08]} 4. d5 {[%emt 0:00:29]} d6 {[%emt 0:00:07]} 5. h3 {[%emt 0:01:08]} e6 {[%emt 0:00:51]} 6. Nc3 {[%emt 0:00:43]} Ne7 {[%emt 0:00:45]} 7. Bd3 {[%emt 0:01:12]} O-O {[%emt 0:01:02]} 8. Nf3 {[%emt 0:00:25]} a6 {[%emt 0:01:24]} 9. O-O {[%emt 0:01:07] LiveBook: 11 Games} Nd7 {[%emt 0:02:05]} 10. a4 {[%emt 0:02:15]} h6 {[%emt 0:01:04]} 11. Bd2 {[%emt 0:29:07]} Qc7 {[%emt 0:13:43]} 12. Re1 {[%emt 0:25:49]} e5 {[%emt 0:13:21]} 13. Nh4 {[%emt 0:04:00]} f5 {[%emt 0:12:41]} 14. exf5 {[%emt 0:03:14]} gxf5 {[%emt 0:01:01]} 15. f4 $14 {[%emt 0:03:45]} (15. Qc2 $16) 1/2-1/2

[Event "CZE-ch Open 2018"]
[Site "Ostrava"]
[Date "2018.05.04"]
[Round "7"]
[White "Nedela, Vlastimil"]
[Black "Svatos, Jan"]
[Result "1-0"]
[ECO "A06"]
[WhiteElo "2307"]
[BlackElo "2272"]
[Annotator "NA"]
[PlyCount "67"]
[EventDate "2018.??.??"]
[EventCountry "CZE"]
[SourceTitle "playchess.com"]
[Source "ChessBase"]
[SourceQuality "1"]
[TimeControl "40/5400+30:900+30"]

1. Nf3 {[%emt 0:00:00]} d5 {[%emt 0:00:12]} 2. g3 {[%emt 0:00:00]} Nf6 {[%emt 0:00:11]} 3. Bg2 {[%emt 0:00:00]} e6 {[%emt 0:00:37]} 4. O-O {[%emt 0:00:21]} Be7 {[%emt 0:00:07]} 5. d3 {[%emt 0:00:50]} O-O {[%emt 0:00:24]} 6. Nbd2 {[%emt 0:00:18]} b6 {[%emt 0:01:00]} 7. e4 {[%emt 0:00:53]} dxe4 {[%emt 0:01:56]} 8. dxe4 {[%emt 0:00:22]} Bb7 {[%emt 0:00:23]} 9. e5 {[%emt 0:01:03]} Nfd7 {[%emt 0:07:23]} 10. b3 {[%emt 0:19:09]} Qc8 {[%emt 0:05:38]} 11. Qe2 {[%emt 0:05:01]} a5 {[%emt 0:03:03]} 12. Ne4 {[%emt 0:08:30]} h6 {[%emt 0:10:07]} 13. h4 {[%emt 0:11:51]} Nc5 {[%emt 0:10:27]} 14. Nxc5 {[%emt 0:16:07]} Bxc5 {[%emt 0:00:36]} 15. Qc4 {[%emt 0:01:05]} Nd7 {[%emt 0:19:03]} 16. Re1 {[%emt 0:03:29]} Rd8 {[%emt 0:06:22]} 17. Qg4 {[%emt 0:03:27]} Kh8 {[%emt 0:04:48] [#]} (17... Kf8 $14) 18. Qh5 $1 {[%emt 0:02:20]} Kg8 $16 {[%emt 0:00:43]} 19. Bxh6 {[%emt 0:05:02]} gxh6 {[%emt 0:02:39]} 20. Qxh6 {[%emt 0:00:17]} Be7 {[%emt 0:03:21]} 21. Ng5 {[%emt 0:07:11]} Bxg5 {[%emt 0:16:46]} 22. Qxg5+ {[%emt 0:00:40]} Kf8 {[%emt 0:00:20]} 23. h5 {[%emt 0:00:29]} Ke8 {[%emt 0:00:03]} 24. h6 {[%emt 0:06:28]} Nf8 {[%emt 0:00:10]} 25. Be4 {[%emt 0:02:07]} Bxe4 {[%emt 0:05:55]} 26. Rxe4 {[%emt 0:00:02]} Ng6 {[%emt 0:00:09]} 27. Qf6 {[%emt 0:00:24]} Qb7 {[%emt 0:00:35]} 28. Rg4 {[%emt 0:01:09]} Rd5 {[%emt 0:00:24]} 29. Rxg6 {[%emt 0:01:18]} fxg6 {[%emt 0:00:05]} 30. Qxe6+ {[%emt 0:00:06]} Kf8 {[%emt 0:00:33]} 31. Qf6+ Ke8 32. h7 {[%emt 0:01:54]} Kd7 {[%emt 0:00:07]} 33. e6+ {[%emt 0:02:27]} Kc6 {[%emt 0:00:06]} 34. e7+ {[%emt 0:00:23]} 1-0

[Event "CZE-ch Open 2018"]
[Site "Ostrava"]
[Date "2018.05.04"]
[Round "7"]
[White "Tuma, Jiri"]
[Black "Bures, Jaroslav"]
[Result "0-1"]
[ECO "B20"]
[WhiteElo "2296"]
[BlackElo "2407"]
[Annotator "NA"]
[PlyCount "78"]
[EventDate "2018.??.??"]
[EventCountry "CZE"]
[SourceTitle "playchess.com"]
[Source "ChessBase"]
[SourceQuality "1"]
[TimeControl "40/5400+30:900+30"]

1. e4 {[%emt 0:01:15]} c5 {[%emt 0:00:09]} 2. b4 {[%emt 0:00:09]} cxb4 {[%emt 0:00:09]} 3. a3 {[%emt 0:00:10]} e5 {[%emt 0:00:04]} 4. Nf3 {[%emt 0:02:40] B20: Sicilian: Unusual White 2nd moves} Nc6 {[%emt 0:00:12]} 5. Bc4 {[%emt 0:00:53]} (5. axb4 Bxb4 6. c3 Be7 7. d4 d6 8. Bb5 Bd7 9. Ba3 Nf6 10. O-O {0-1 (22) Perunovic,M (2696)-Bogosavljevic,B (2504) Belgrade 2014}) 5... Nf6 {[%emt 0:00:07]} 6. Ng5 {[%emt 0:01:02]} d5 {[%emt 0:00:06]} 7. exd5 {[%emt 0:00:37]} b5 {[%emt 0:00:07]} 8. Ba2 {[%emt 0:13:42]} Nd4 {[%emt 0:02:45]} 9. c3 {[%emt 0:09:55]} b3 {[%emt 0:05:33]} 10. Bxb3 {[%emt 0:02:23]} Nxb3 {[%emt 0:01:04]} 11. Qxb3 {[%emt 0:00:09]} Qxd5 {[%emt 0:06:10]} 12. Qxd5 {[%emt 0:00:29]} Nxd5 {[%emt 0:00:05]} 13. O-O $146 {[%emt 0:03:48]} f6 {[%emt 0:02:47]} 14. Nf3 {[%emt 0:02:14]} Bd7 {[%emt 0:04:16]} 15. a4 {[%emt 0:13:15]} bxa4 {[%emt 0:00:59]} 16. Ba3 {[%emt 0:00:18]} Rc8 {[%emt 0:12:47]} 17. Bxf8 {[%emt 0:05:16]} Rxf8 {[%emt 0:01:53]} 18. Ra3 {[%emt 0:01:48]} Rf7 {[%emt 0:07:36]} 19. Re1 {[%emt 0:11:46]} Re7 {[%emt 0:02:46]} 20. Ra2 {[%emt 0:06:02]} Bb5 {[%emt 0:02:40]} 21. Na3 {[%emt 0:00:56]} Bd3 {[%emt 0:05:58]} 22. Rea1 {[%emt 0:05:19]} Nb6 {[%emt 0:03:21]} 23. Rb2 {[%emt 0:03:24]} Rd7 {[%emt 0:01:49]} 24. Rb4 {[%emt 0:03:38]} Be2 {[%emt 0:01:52]} 25. Nb1 {[%emt 0:06:20]} Rc4 $19 {[%emt 0:16:13]} 26. Rb2 {[%emt 0:03:19]} Bxf3 {[%emt 0:01:15]} 27. gxf3 {[%emt 0:00:10]} Rf4 {[%emt 0:00:01]} 28. c4 {[%emt 0:01:40]} Nxc4 {[%emt 0:03:32]} 29. Rb8+ {[%emt 0:00:30]} Ke7 {[%emt 0:00:05]} 30. Rxa4 {[%emt 0:00:40]} Nxd2 {[%emt 0:00:30]} 31. Rxf4 {[%emt 0:00:50]} exf4 {[%emt 0:00:03]} 32. Nxd2 {[%emt 0:00:28]} Rxd2 {[%emt 0:00:03]} 33. Rb7+ {[%emt 0:00:42]} Rd7 {[%emt 0:00:03]} 34. Rb4 {[%emt 0:00:23]} g5 {[%emt 0:00:07]} 35. h4 {[%emt 0:00:31]} a5 {[%emt 0:03:01]} 36. Rb5 {[%emt 0:00:42]} Ra7 {[%emt 0:00:07]} 37. hxg5 {[%emt 0:00:17]} a4 {[%emt 0:02:02]} 38. gxf6+ {[%emt 0:00:07]} Kxf6 {[%emt 0:00:05]} 39. Rb6+ {[%emt 0:00:52]} Ke5 {[%emt 0:00:43]} 0-1

[Event "CZE-ch Open 2018"]
[Site "Ostrava"]
[Date "2018.05.04"]
[Round "7"]
[White "Vybiral, Zdenek"]
[Black "Malinovsky, Petr"]
[Result "1-0"]
[ECO "B38"]
[WhiteElo "2261"]
[BlackElo "2006"]
[Annotator "NA"]
[PlyCount "85"]
[EventDate "2018.??.??"]
[EventCountry "CZE"]
[SourceTitle "playchess.com"]
[Source "ChessBase"]
[SourceQuality "1"]
[TimeControl "40/5400+30:900+30"]

1. e4 {[%emt 0:00:00]} c5 {[%emt 0:02:31]} 2. Nf3 {[%emt 0:00:00]} g6 {[%emt 0:00:54]} 3. d4 {[%emt 0:01:41]} cxd4 {[%emt 0:00:17]} 4. Nxd4 {[%emt 0:00:11]} Nc6 {[%emt 0:00:07]} 5. c4 {[%emt 0:00:07]} Bg7 {[%emt 0:00:48]} 6. Be3 {[%emt 0:01:36]} Nf6 {[%emt 0:02:50]} 7. Nc3 {[%emt 0:00:18]} O-O {[%emt 0:00:23]} 8. Be2 {[%emt 0:01:15]} d6 {[%emt 0:03:17]} 9. O-O {[%emt 0:20:53]} Bd7 {[%emt 0:02:44]} 10. Nc2 {[%emt 0:06:25]} h6 {[%emt 0:03:49] B38: Sicilian: Maroczy Bind with 5...Bg7 and 7...0-0} (10... Qa5 11. f3 Rfc8 12. Rc1 Ne5 13. b4 Qd8 14. Na3 a5 15. b5 a4 16. Nd5 Nxd5 17. cxd5 Rxc1 18. Qxc1 Qa5 {0-1 (50) Leko,P (2693)-Adhiban,B (2666) Doha 2016}) 11. Qd2 {[%emt 0:01:08]} Kh7 $146 {[%emt 0:00:13]} ({Predecessor:} 11... Rc8 12. Bxh6 Ne5 13. Bxg7 Kxg7 14. Ne3 b5 15. Ned5 Nxd5 16. cxd5 Qb6 17. Rac1 {0-1 (34) Boehm,T (2113)-Kubecka,D (2252) Prague 2005}) 12. f3 {[%emt 0:00:16]} Ne8 {[%emt 0:03:00]} 13. Rab1 {[%emt 0:03:55]} f5 {[%emt 0:01:02]} 14. exf5 {[%emt 0:00:17]} Bxf5 {[%emt 0:00:18]} 15. Bd3 {[%emt 0:05:11]} Bxd3 {[%emt 0:06:43]} 16. Qxd3 {[%emt 0:00:07]} Ne5 {[%emt 0:00:16]} 17. Qe2 {[%emt 0:00:25]} Qc8 {[%emt 0:05:24]} 18. Na3 {[%emt 0:01:09]} Qf5 {[%emt 0:05:28]} 19. Rbd1 {[%emt 0:00:15]} Nf6 {[%emt 0:01:06]} 20. Nab5 {[%emt 0:00:43]} a6 {[%emt 0:06:24]} 21. Nd4 {[%emt 0:00:25]} Qc8 {[%emt 0:00:10]} 22. b3 {[%emt 0:01:00]} Nc6 {[%emt 0:00:24]} 23. Rfe1 {[%emt 0:08:56]} Nxd4 {[%emt 0:04:00]} 24. Bxd4 {[%emt 0:00:11]} e5 {[%emt 0:00:41]} 25. Bf2 {[%emt 0:01:45]} Qe6 {[%emt 0:00:48]} 26. Qd3 {[%emt 0:09:00]} Rad8 {[%emt 0:01:05]} 27. Nd5 {[%emt 0:16:08]} Nxd5 {[%emt 0:02:10]} 28. Qxd5 {[%emt 0:00:07]} Qxd5 {[%emt 0:01:27]} 29. Rxd5 {[%emt 0:00:07]} Rf7 {[%emt 0:06:53]} 30. Red1 {[%emt 0:06:05]} e4 {[%emt 0:02:00]} 31. fxe4 {[%emt 0:00:39]} Rdf8 {[%emt 0:00:09]} 32. Bg3 {[%emt 0:00:49]} Re8 {[%emt 0:03:36] [#]} 33. Re1 $18 {[%emt 0:04:55]} ({Don't take} 33. Bxd6 Rxe4 34. Bc5 Re2 $16) 33... Bc3 {[%emt 0:04:02]} 34. Re2 {[%emt 0:03:16]} Be5 {[%emt 0:02:29]} 35. Bxe5 {[%emt 0:02:40]} dxe5 {[%emt 0:00:09]} 36. Rf2 {[%emt 0:00:05]} Kg7 {[%emt 0:01:57]} 37. Rxf7+ {[%emt 0:01:10]} Kxf7 {[%emt 0:00:01]} 38. Rd7+ {[%emt 0:00:09]} Re7 {[%emt 0:00:21]} 39. Rxe7+ {[%emt 0:00:06]} Kxe7 {[%emt 0:00:08]} 40. Kf2 {[%emt 0:01:26]} Kd6 {[%emt 0:15:05]} 41. b4 {[%emt 0:15:57]} h5 {[%emt 0:05:25]} 42. g4 {[%emt 0:02:10]} Ke6 {[%emt 0:01:17]} 43. gxh5 {[%emt 0:00:00]} 1-0

[Event "CZE-ch Open 2018"]
[Site "Ostrava"]
[Date "2018.05.04"]
[Round "7"]
[White "Toman, Jaroslav"]
[Black "Bures, Martin"]
[Result "1-0"]
[ECO "B38"]
[WhiteElo "2233"]
[BlackElo "2100"]
[Annotator "NA"]
[PlyCount "83"]
[EventDate "2018.??.??"]
[EventCountry "CZE"]
[SourceTitle "playchess.com"]
[Source "ChessBase"]
[SourceQuality "1"]
[TimeControl "40/5400+30:900+30"]

1. e4 {[%emt 0:00:00]} c5 {[%emt 0:01:10]} 2. Nf3 {[%emt 0:00:01]} Nc6 {[%emt 0:00:02]} 3. d4 {[%emt 0:00:14]} cxd4 {[%emt 0:00:02]} 4. Nxd4 {[%emt 0:00:06]} g6 {[%emt 0:00:04]} 5. c4 {[%emt 0:00:57]} Bg7 {[%emt 0:00:01]} 6. Be3 {[%emt 0:00:55]} Qb6 {[%emt 0:00:02]} 7. Nb3 {[%emt 0:21:16] B38: Sicilian: Maroczy Bind with 5...Bg7 and 7...0-0} Qb4+ {[%emt 0:01:32]} (7... Qd8 8. Qd2 Nf6 9. Nc3 O-O 10. Be2 d6 11. O-O a5 12. Nd4 a4 13. Ndb5 Qa5 14. f3 Be6 {½-½ (22) Bacrot,E (2715)-Iturrizaga Bonelli,E (2662) Linares 2017}) 8. Bd2 {[%emt 0:02:17]} Qd6 {[%emt 0:01:17]} 9. Nc3 {[%emt 0:00:58]} Nf6 {[%emt 0:03:44]} 10. Be2 {[%emt 0:08:38]} O-O {[%emt 0:00:12]} 11. O-O {[%emt 0:01:19]} Qb8 {[%emt 0:06:00]} 12. f4 $146 {[%emt 0:02:21]} ({Predecessor:} 12. f3 b6 13. Be3 Ne8 14. Qc2 Nd6 {0-1 (30) Kovarik,M (1885)-Kislinsky,A (2489) Kouty nad Desnou 2015}) 12... d6 {[%emt 0:00:11]} 13. Bf3 {[%emt 0:00:32]} Be6 {[%emt 0:02:04]} 14. Nd5 {[%emt 0:01:00]} b5 {[%emt 0:01:01]} 15. Rc1 {[%emt 0:05:01]} bxc4 {[%emt 0:28:53]} 16. Rxc4 {[%emt 0:00:39]} Bd7 {[%emt 0:00:19] [#]} 17. Rxc6 $1 {[%emt 0:07:13]} Bxc6 (17... Nxd5 {was worth a try.} 18. exd5 a5) 18. Nxe7+ {[%emt 0:00:50]} Kh8 {[%emt 0:06:11]} 19. Nxc6 {[%emt 0:00:04]} Qb6+ {[%emt 0:01:15]} 20. Ncd4 {[%emt 0:00:06]} Nxe4 {[%emt 0:02:10]} 21. Ba5 {[%emt 0:04:29]} (21. Bxe4 $142 Bxd4+ 22. Kh1 Bxb2 23. Bxa8 Rxa8 24. f5) 21... Qb7 {[%emt 0:03:42]} 22. Bxe4 {[%emt 0:04:48]} Qxe4 {[%emt 0:00:30]} 23. Bc3 {[%emt 0:00:11]} Rac8 {[%emt 0:02:30]} 24. f5 {[%emt 0:02:06]} Be5 {[%emt 0:05:56]} 25. Qf3 {[%emt 0:00:45]} Qxf3 {[%emt 0:03:02]} 26. Rxf3 {[%emt 0:00:35]} Kg8 {[%emt 0:01:27]} 27. Na5 {[%emt 0:04:18]} Rfe8 $18 {[%emt 0:02:42]} 28. f6 {[%emt 0:04:18]} Bxd4+ {[%emt 0:03:45]} 29. Bxd4 {[%emt 0:00:08]} Rc2 {[%emt 0:00:17]} 30. h3 {[%emt 0:15:20]} Ree2 {[%emt 0:00:26]} 31. Rg3 {[%emt 0:01:17]} h5 {[%emt 0:00:20]} 32. Nb3 {[%emt 0:02:01]} a5 {[%emt 0:02:48]} 33. Bc3 {[%emt 0:00:38]} a4 {[%emt 0:02:55]} 34. Nd4 {[%emt 0:00:41]} Rc1+ {[%emt 0:00:02]} 35. Kh2 {[%emt 0:00:19]} Rf2 {[%emt 0:01:09]} 36. a3 {[%emt 0:05:46]} Rff1 {[%emt 0:02:57]} 37. Rf3 {[%emt 0:00:21]} Rh1+ {[%emt 0:01:03]} 38. Kg3 {[%emt 0:00:02]} Kh7 {[%emt 0:01:54]} 39. Ne6 {[%emt 0:03:04]} Rhf1 {[%emt 0:02:43]} 40. Ng5+ {[%emt 0:01:33]} Kg8 {[%emt 0:15:18]} 41. Re3 {[%emt 0:15:44]} Kf8 {[%emt 0:02:10]} 42. Re7 {[%emt 0:01:34]} 1-0

[Event "CZE-ch Open 2018"]
[Site "Ostrava"]
[Date "2018.05.04"]
[Round "7"]
[White "Skalsky, Alexandr"]
[Black "Kopriva, Martin"]
[Result "1-0"]
[ECO "B06"]
[WhiteElo "2207"]
[BlackElo "2071"]
[Annotator "NA"]
[PlyCount "76"]
[EventDate "2018.??.??"]
[EventCountry "CZE"]
[SourceTitle "playchess.com"]
[Source "ChessBase"]
[SourceQuality "1"]
[TimeControl "40/5400+30:900+30"]

1. e4 {[%emt 0:00:00]} g6 {[%emt 0:00:07]} 2. d4 {[%emt 0:00:00]} Bg7 {[%emt 0:00:04]} 3. Nc3 {[%emt 0:00:00]} d6 {[%emt 0:00:09]} 4. Be3 {[%emt 0:00:06]} c6 {[%emt 0:00:37]} 5. h3 {[%emt 0:00:35]} Qc7 {[%emt 0:02:04]} 6. Nge2 {[%emt 0:03:13]} b5 {[%emt 0:06:46]} 7. a3 {[%emt 0:00:08]} a6 {[%emt 0:03:12]} 8. g4 {[%emt 0:00:35]} Nd7 {[%emt 0:07:45]} 9. Bg2 {[%emt 0:00:19]} Bb7 {[%emt 0:06:34]} 10. Ng3 {[%emt 0:04:32]} e5 {[%emt 0:05:59]} 11. O-O {[%emt 0:02:30]} Ne7 {[%emt 0:02:33]} 12. Kh1 {[%emt 0:03:46]} O-O-O {[%emt 0:10:40]} 13. f4 {[%emt 0:01:23]} h5 {[%emt 0:06:12]} 14. g5 {[%emt 0:02:16]} f6 {[%emt 0:03:27]} 15. fxe5 {[%emt 0:13:08]} dxe5 {[%emt 0:02:46]} 16. d5 {[%emt 0:01:14]} cxd5 {[%emt 0:05:52]} 17. exd5 {[%emt 0:01:37]} Nb6 {[%emt 0:11:19]} 18. gxf6 {[%emt 0:11:03]} Bxf6 {[%emt 0:05:42]} 19. Rxf6 {[%emt 0:01:38]} Nbxd5 {[%emt 0:00:24]} 20. Qf3 {[%emt 0:01:05]} Nxf6 {[%emt 0:01:05]} 21. Qxf6 {[%emt 0:00:52]} Nf5 {[%emt 0:07:18]} 22. Nxf5 {[%emt 0:05:26]} gxf5 {[%emt 0:00:29]} 23. Qxf5+ {[%emt 0:01:03]} Kb8 {[%emt 0:00:11]} 24. Bxb7 {[%emt 0:01:18]} Qxb7+ {[%emt 0:00:16]} 25. Qe4 {[%emt 0:00:40]} Rhf8 {[%emt 0:03:47]} 26. Qxb7+ {[%emt 0:10:33]} Kxb7 {[%emt 0:00:03]} 27. Re1 {[%emt 0:00:48]} Rf3 $18 {[%emt 0:02:56]} 28. Kg2 {[%emt 0:00:34]} Rf5 {[%emt 0:00:17]} 29. h4 {[%emt 0:06:12]} Rg8+ {[%emt 0:02:26]} 30. Bg5 {[%emt 0:00:05]} Kc6 {[%emt 0:00:34]} 31. Ne4 {[%emt 0:04:50]} Kd5 {[%emt 0:00:39]} 32. Ng3 {[%emt 0:00:48]} Rf4 {[%emt 0:00:45]} 33. Nxh5 {[%emt 0:06:02]} Rxh4 {[%emt 0:01:47]} 34. Nf6+ {[%emt 0:00:06]} Ke6 {[%emt 0:00:33]} 35. Nxg8 {[%emt 0:00:04]} Rg4+ {[%emt 0:00:04]} 36. Kf3 {[%emt 0:01:55]} Rxg5 {[%emt 0:00:01]} 37. Nh6 {[%emt 0:00:06]} e4+ {[%emt 0:02:52]} 38. Rxe4+ {[%emt 0:00:05]} Kd5 1-0